bitfinex-derivatives/quotes_BTCF0:USTF0_20250614
["timestamp","ask_amount","ask_price","bid_price","bid_amount"]
[1749886451899,0.40515566,105110.0,105100.0,2.49015268]
[1749886452089,0.40515566,105110.0,105100.0,2.49015267]
[1749886452289,0.40515566,105110.0,105100.0,2.46499991]
[1749886452492,0.40515566,105110.0,105100.0,2.49015267]
[1749886452693,0.40515566,105110.0,105100.0,1.52755267]
[1749886452991,0.40515566,105110.0,105100.0,2.47520469]
[1749886453299,0.40515566,105110.0,105100.0,2.46491991]
[1749886453505,0.40515566,105110.0,105100.0,2.49007267]
[1749886453687,0.40515566,105110.0,105100.0,2.46491991]
[1749886453893,0.40515566,105110.0,105100.0,2.49007267]
[1749886454290,0.40515566,105110.0,105100.0,2.47978789]
[1749886454596,0.40515566,105110.0,105100.0,1.52755347]
[1749886454793,0.40515566,105110.0,105100.0,2.34333826]
[1749886454993,0.40515566,105110.0,105100.0,2.49003347]
[1749886455193,0.40515566,105110.0,105100.0,2.49003359]
[1749886455497,0.40515566,105110.0,105100.0,2.47974799]
[1749886455797,0.40515566,105110.0,105100.0,2.34333839]
[1749886455998,0.40515566,105110.0,105100.0,2.4900336]
[1749886456199,0.40515566,105110.0,105100.0,2.49003354]
[1749886456499,0.40515566,105110.0,105100.0,2.46487991]
[1749886456696,0.40515566,105110.0,105100.0,2.47974776]
[1749886456896,0.40515566,105110.0,105100.0,2.40106117]
[1749886457092,0.40515566,105110.0,105100.0,2.40106137]
[1749886457293,0.40515566,105110.0,105100.0,2.39077583]
[1749886457493,0.40515566,105110.0,105100.0,2.40106144]
[1749886457691,0.40515566,105110.0,105100.0,2.39077584]
[1749886457891,0.40515566,105110.0,105100.0,2.38619339]
[1749886458093,0.40515566,105110.0,105100.0,2.40106144]
[1749886458293,0.40515566,105110.0,105100.0,2.40106065]
[1749886458694,0.40515566,105110.0,105100.0,2.39077584]
[1749886458898,0.40515566,105110.0,105100.0,2.3861926]
[1749886459087,0.40515566,105110.0,105100.0,2.40106065]
[1749886459291,0.40515566,105110.0,105100.0,2.39077584]
[1749886459595,0.40515566,105110.0,105100.0,2.4010626]
[1749886459795,0.40515566,105110.0,105100.0,2.40106227]
[1749886460192,0.40515566,105110.0,105100.0,2.39077584]
[1749886460387,0.40515566,105110.0,105100.0,2.40106227]
[1749886461395,0.40515566,105110.0,105100.0,2.39077584]
[1749886461696,0.40515566,105110.0,105100.0,2.40106227]
[1749886461893,0.40515566,105110.0,105100.0,2.39077584]
[1749886462297,0.40515566,105110.0,105100.0,2.40106227]
[1749886462596,0.08891934,105120.0,105110.0,0.190192]
[1749886462802,0.11921934,105130.0,105120.0,0.1901739]
[1749886463099,0.91687035,105130.0,105120.0,2.13570495]
[1749886463296,0.97997035,105130.0,105120.0,2.08653785]
[1749886463496,0.97997035,105130.0,105120.0,2.08653791]
[1749886463696,0.97997035,105130.0,105120.0,2.08653841]
[1749886463899,0.97997035,105130.0,105120.0,2.07625238]
[1749886464090,0.97997035,105130.0,105120.0,2.08653841]
[1749886464296,0.97997035,105130.0,105120.0,1.07962794]
[1749886464492,0.97997035,105130.0,105120.0,2.03166191]
[1749886464701,0.98597035,105130.0,105120.0,2.04194835]
[1749886465001,0.98597035,105130.0,105120.0,2.03166224]
[1749886465302,0.99767451,105130.0,105120.0,2.04194838]
[1749886465498,0.99767451,105130.0,105120.0,2.03166224]
[1749886465697,0.99767451,105130.0,105120.0,2.04238114]
[1749886465902,0.99767451,105130.0,105120.0,1.08010119]
[1749886466101,0.99767451,105130.0,105120.0,2.04234134]
[1749886466302,0.99767451,105130.0,105120.0,2.02747397]
[1749886466502,0.99767451,105130.0,105120.0,2.04234135]
[1749886467004,0.90875517,105130.0,105120.0,2.04234134]
[1749886467200,0.90875517,105130.0,105120.0,2.0423418]
[1749886467699,0.99765001,105130.0,105120.0,2.03205514]
[1749886467892,0.90875517,105130.0,105120.0,2.0423418]
[1749886468095,0.76205996,105130.0,105120.0,2.17875035]
[1749886468295,0.78785504,105130.0,105120.0,2.3522656]
[1749886468505,0.82105504,105130.0,105120.0,2.20557023]
[1749886468705,0.82105504,105130.0,105120.0,2.21014963]
[1749886469407,0.82105504,105130.0,105120.0,2.21010963]
[1749886469699,0.82105504,105130.0,105120.0,2.21310963]
[1749886469899,0.81605504,105130.0,105120.0,2.22339683]
[1749886470100,0.81605504,105130.0,105120.0,2.20853018]
[1749886470497,0.81605504,105130.0,105120.0,2.22337401]
[1749886470901,0.81605504,105130.0,105120.0,2.20850736]
[1749886471103,0.96275025,105130.0,105120.0,2.22362528]
[1749886471305,0.96275025,105130.0,105120.0,2.22412782]
[1749886472009,0.96275025,105130.0,105120.0,2.07743261]
[1749886472207,0.96275025,105130.0,105120.0,1.85581871]
[1749886472401,0.99275025,105130.0,105120.0,0.89365895]
[1749886472610,0.99275025,105130.0,105120.0,1.85577895]
[1749886472905,0.99275025,105130.0,105120.0,1.85577993]
[1749886473700,0.99275025,105130.0,105120.0,1.85578067]
[1749886473901,0.99275025,105130.0,105120.0,0.89366067]
[1749886474104,0.99275025,105130.0,105120.0,1.85546067]
[1749886475110,0.99275025,105130.0,105120.0,1.84519536]
[1749886475313,0.99275025,105130.0,105120.0,2.19233255]
[1749886475702,0.99275025,105130.0,105120.0,2.18206477]
[1749886475901,0.99275025,105130.0,105120.0,2.19233255]
[1749886476115,0.99275025,105130.0,105120.0,2.19233254]
[1749886477622,0.84605504,105130.0,105120.0,2.19233254]
[1749886477921,0.99275025,105130.0,105120.0,2.19229392]
[1749886478921,0.99275025,105130.0,105120.0,2.00211972]
[1749886479123,0.99275025,105130.0,105120.0,2.19229392]
[1749886479521,0.99275025,105130.0,105120.0,2.0456]
[1749886480519,0.90385517,105130.0,105120.0,2.0456]
[1749886481620,0.90385517,105130.0,105120.0,2.03532956]
[1749886481922,0.90385517,105130.0,105120.0,2.04560088]
[1749886482112,0.90385517,105130.0,105120.0,2.03532953]
[1749886482312,0.90385517,105130.0,105120.0,2.0307332]
[1749886482624,0.90385517,105130.0,105120.0,2.04560085]
[1749886484518,0.90385517,105130.0,105120.0,2.0456015]
[1749886484727,0.90385517,105130.0,105120.0,2.0775015]
[1749886485727,0.90385517,105130.0,105120.0,1.23012188]
[1749886488228,0.87385517,105130.0,105120.0,1.23012188]
[1749886492930,0.84065517,105130.0,105120.0,1.26102188]
[1749886493130,0.84065517,105130.0,105120.0,1.21848801]
[1749886497125,0.84065517,105130.0,105120.0,0.06655381]
[1749886497329,0.84065517,105130.0,105120.0,0.43932801]
[1749886504835,0.84065517,105130.0,105120.0,0.48188451]
[1749886505140,0.95928762,105130.0,105120.0,0.48188451]
[1749886507136,0.95928762,105130.0,105120.0,0.48160451]
[1749886510743,0.84065517,105130.0,105120.0,0.33601388]
[1749886511338,0.84065517,105130.0,105120.0,0.29143031]
[1749886512947,0.69395996,105130.0,105120.0,0.29143031]
[1749886513243,0.84065517,105130.0,105120.0,0.29143031]
[1749886514240,0.98735038,105130.0,105120.0,0.04631031]
[1749886514543,0.1901742,105120.0,105110.0,1.03772255]
[1749886514843,0.90846462,105120.0,105110.0,1.03772255]
[1749886515032,0.73371524,105120.0,105110.0,1.03772255]
[1749886515238,0.88041045,105120.0,105110.0,1.03772255]
[1749886515647,0.88041045,105120.0,105110.0,1.22791485]
[1749886515845,0.88041045,105120.0,105110.0,1.03772255]
[1749886516335,0.76176941,105120.0,105110.0,1.04772255]
[1749886516539,0.76176941,105120.0,105110.0,1.05172255]
[1749886517246,0.6150742,105120.0,105110.0,1.05172255]
[1749886517541,0.8507188,105120.0,105110.0,1.05172255]
[1749886517746,0.8507188,105120.0,105110.0,1.24191485]
[1749886519039,0.8507188,105120.0,105110.0,1.05172255]
[1749886519240,0.8507188,105120.0,105110.0,1.27401485]
[1749886519447,0.8507188,105120.0,105110.0,1.08382255]
[1749886519845,0.8507188,105120.0,105110.0,1.10054856]
[1749886520247,0.8507188,105120.0,105110.0,1.08382255]
[1749886520446,0.8507188,105120.0,105110.0,1.27401495]
[1749886520649,0.8507188,105120.0,105110.0,1.08382255]
[1749886521647,0.8507188,105120.0,105110.0,1.27401485]
[1749886522048,0.8507188,105120.0,105110.0,1.08382255]
[1749886522949,0.8507188,105120.0,105110.0,1.42071006]
[1749886524040,0.70402359,105120.0,105110.0,1.42071006]
[1749886524245,0.8507188,105120.0,105110.0,1.42071006]
[1749886524446,0.76176941,105120.0,105110.0,1.42071006]
[1749886524749,0.76176941,105120.0,105110.0,1.27401485]
[1749886525949,0.6150742,105120.0,105110.0,1.27401485]
[1749886526144,0.76176941,105120.0,105110.0,1.27401485]
[1749886528449,0.76176941,105120.0,105110.0,1.08382255]
[1749886528652,0.76176941,105120.0,105110.0,0.26162255]
[1749886529049,0.76176941,105120.0,105110.0,0.59851006]
[1749886529549,0.76176941,105120.0,105110.0,0.45181485]
[1749886530051,0.76176941,105120.0,105110.0,0.07934255]
[1749886530345,0.90846462,105120.0,105110.0,0.04724255]
[1749886530557,0.1901923,105110.0,105100.0,1.60068]
[1749886530746,0.79258751,105110.0,105100.0,1.783]
[1749886530946,0.79258751,105110.0,105100.0,0.82228]
[1749886531145,0.79258751,105110.0,105100.0,1.0046]
[1749886531341,0.79258751,105110.0,105100.0,1.78296]
[1749886531547,0.79258751,105110.0,105100.0,1.79323194]
[1749886532047,0.79258751,105110.0,105100.0,1.80423194]
[1749886532448,2.29258751,105110.0,105100.0,1.80424244]
[1749886532650,2.29258751,105110.0,105100.0,1.82411269]
[1749886532853,2.29258751,105110.0,105100.0,0.86343269]
[1749886533049,2.29258751,105110.0,105100.0,1.82411269]
[1749886533555,2.29258751,105110.0,105100.0,1.81383026]
[1749886533752,2.29258751,105110.0,105100.0,1.80924244]
[1749886533949,2.29258751,105110.0,105100.0,1.8241127]
[1749886534457,2.3814756,105110.0,105100.0,0.89075901]
[1749886534756,2.3814756,105110.0,105100.0,1.07766697]
[1749886534947,2.3814756,105110.0,105100.0,1.08794946]
[1749886535149,2.3814756,105110.0,105100.0,1.07766705]
[1749886535454,2.3814756,105110.0,105100.0,1.08794957]
[1749886535654,2.3814756,105110.0,105100.0,1.06279657]
[1749886535858,2.3814756,105110.0,105100.0,0.88047657]
[1749886536149,2.3814756,105110.0,105100.0,1.07742706]
[1749886536351,2.3814756,105110.0,105100.0,1.07283909]
[1749886536552,2.3814756,105110.0,105100.0,1.07742706]
[1749886536752,2.3814756,105110.0,105100.0,1.06255657]
[1749886537052,2.3814756,105110.0,105100.0,1.08770958]
[1749886537255,2.3814756,105110.0,105100.0,1.11820977]
[1749886537456,2.3814756,105110.0,105100.0,1.14922206]
[1749886537956,2.3814756,105110.0,105100.0,1.33943237]
[1749886538255,2.3814756,105110.0,105100.0,1.13435157]
[1749886538446,2.3814756,105110.0,105100.0,1.13892706]
[1749886538647,2.3814756,105110.0,105100.0,1.1492223]
[1749886538855,2.3814756,105110.0,105100.0,1.13435181]
[1749886539046,2.3814756,105110.0,105100.0,1.32456221]
[1749886539242,2.3814756,105110.0,105100.0,1.32913746]
[1749886539447,2.3814756,105110.0,105100.0,1.32456775]
[1749886539644,2.3814756,105110.0,105100.0,1.32913746]
[1749886539848,2.3814756,105110.0,105100.0,1.32456775]
[1749886540247,2.3814756,105110.0,105100.0,1.33943824]
[1749886540449,2.3814756,105110.0,105100.0,1.32456816]
[1749886540651,2.3814756,105110.0,105100.0,1.32913746]
[1749886540949,2.3814756,105110.0,105100.0,1.32456816]
[1749886541151,2.23478039,105110.0,105100.0,1.13892706]
[1749886541455,2.23478039,105110.0,105100.0,1.47126389]
[1749886541456,2.2865756,105110.0,105100.0,1.47126389]
[1749886541752,2.2865756,105110.0,105100.0,1.50176377]
[1749886541951,2.2865756,105110.0,105100.0,1.50176375]
[1749886542153,2.2865756,105110.0,105100.0,1.50633221]
[1749886542352,2.2865756,105110.0,105100.0,1.5166345]
[1749886542654,2.2865756,105110.0,105100.0,1.50176447]
[1749886542852,2.2865756,105110.0,105100.0,1.51663451]
[1749886543256,2.2865756,105110.0,105100.0,1.50633222]
[1749886543452,2.2865756,105110.0,105100.0,1.51663547]
[1749886543657,2.2865756,105110.0,105100.0,1.50176543]
[1749886543847,2.2865756,105110.0,105100.0,1.51663547]
[1749886544553,2.2865756,105110.0,105100.0,1.51663675]
[1749886544755,2.2865756,105110.0,105100.0,1.50633217]
[1749886544954,2.2865756,105110.0,105100.0,1.51663673]
[1749886545353,2.2865756,105110.0,105100.0,1.50633217]
[1749886545559,2.2865756,105110.0,105100.0,1.51663643]
[1749886545761,2.2865756,105110.0,105100.0,1.50633217]
[1749886545954,2.2865756,105110.0,105100.0,1.51663643]
[1749886546160,2.2865756,105110.0,105100.0,1.50176644]
[1749886546359,2.2865756,105110.0,105100.0,1.50633217]
[1749886546560,2.3197756,105110.0,105100.0,1.50176613]
[1749886546859,2.3197756,105110.0,105100.0,1.50633217]
[1749886547054,2.3197756,105110.0,105100.0,1.5166339]
[1749886547266,2.3197756,105110.0,105100.0,1.35963696]
[1749886547455,2.13988039,105110.0,105100.0,1.51663356]
[1749886547655,2.2865756,105110.0,105100.0,1.50633217]
[1749886547853,2.2865756,105110.0,105100.0,1.50633216]
[1749886548249,2.2865756,105110.0,105100.0,1.49146218]
[1749886548451,2.2865756,105110.0,105100.0,1.51663318]
[1749886548853,2.2865756,105110.0,105100.0,1.49146218]
[1749886549054,2.2865756,105110.0,105100.0,1.5017632]
[1749886549457,2.2865756,105110.0,105100.0,1.50633212]
[1749886549761,2.2865756,105110.0,105100.0,1.49146218]
[1749886549959,2.2865756,105110.0,105100.0,1.53372372]
[1749886550261,2.2865756,105110.0,105100.0,1.53372333]
[1749886550459,2.2865756,105110.0,105100.0,1.5188534]
[1749886550661,2.2865756,105110.0,105100.0,1.50855318]
[1749886550862,2.2865756,105110.0,105100.0,1.52342311]
[1749886551066,2.2865756,105110.0,105100.0,1.53372333]
[1749886551364,2.2865756,105110.0,105100.0,1.5337229]
[1749886551856,2.6473756,105110.0,105100.0,1.51885297]
[1749886552065,2.6473756,105110.0,105100.0,1.53372291]
[1749886552264,2.6473756,105110.0,105100.0,1.52342312]
[1749886552456,2.6473756,105110.0,105100.0,1.53372245]
[1749886552755,2.6473756,105110.0,105100.0,1.5017615]
[1749886553158,2.6473756,105110.0,105100.0,1.51663143]
[1749886553561,2.6473756,105110.0,105100.0,1.51663093]
[1749886554359,2.6473756,105110.0,105100.0,1.49146218]
[1749886554561,2.6473756,105110.0,105100.0,1.50176048]
[1749886554859,2.6473756,105110.0,105100.0,1.51663041]
[1749886555255,2.6473756,105110.0,105100.0,1.50633211]
[1749886555459,2.6473756,105110.0,105100.0,1.51662986]
[1749886555662,2.6473756,105110.0,105100.0,1.50175993]
[1749886556068,2.6473756,105110.0,105100.0,1.51662986]
[1749886556365,2.6473756,105110.0,105100.0,1.50175941]
[1749886556564,2.6473756,105110.0,105100.0,1.51662991]
[1749886557266,2.6473756,105110.0,105100.0,1.51662993]
[1749886557668,2.6473756,105110.0,105100.0,1.50633212]
[1749886557965,2.6473756,105110.0,105100.0,1.36993472]
[1749886558161,2.6775756,105110.0,105100.0,1.3291369]
[1749886558369,2.6775756,105110.0,105100.0,1.47126058]
[1749886558554,2.6775756,105110.0,105100.0,1.48613053]
[1749886559069,2.6775756,105110.0,105100.0,1.47126058]
[1749886559262,2.6775756,105110.0,105100.0,1.48613054]
[1749886559467,2.6775756,105110.0,105100.0,1.48613273]
[1749886559971,2.6775756,105110.0,105100.0,1.47126515]
[1749886560362,2.6775756,105110.0,105100.0,1.48614554]
[1749886560562,2.6775756,105110.0,105100.0,1.46096218]
[1749886560864,2.6775756,105110.0,105100.0,1.48614554]
[1749886561463,2.6775756,105110.0,105100.0,1.48614501]
[1749886561663,2.6775756,105110.0,105100.0,1.47127505]
[1749886561866,2.6775756,105110.0,105100.0,1.48614502]
[1749886562067,2.6775756,105110.0,105100.0,1.47127506]
[1749886562273,2.6775756,105110.0,105100.0,1.46096218]
[1749886562274,2.7084756,105110.0,105100.0,1.46096218]
[1749886562470,2.7084756,105110.0,105100.0,1.48614366]
[1749886562672,2.7084756,105110.0,105100.0,1.48614179]
[1749886563475,2.7084756,105110.0,105100.0,1.89627618]
[1749886563769,2.65118751,105110.0,105100.0,1.89627618]
[1749886564172,2.65118751,105110.0,105100.0,1.87109657]
[1749886564366,2.65118751,105110.0,105100.0,1.85090646]
[1749886564568,2.65118751,105110.0,105100.0,2.04111686]
[1749886564763,2.65118751,105110.0,105100.0,2.05598707]
[1749886565067,2.65118751,105110.0,105100.0,2.17750218]
[1749886565273,2.65118751,105110.0,105100.0,2.20268228]
[1749886565672,2.65118751,105110.0,105100.0,2.18781207]
[1749886565865,2.65118751,105110.0,105100.0,2.19237239]
[1749886566065,2.65118751,105110.0,105100.0,2.20268228]
[1749886566768,1.15118751,105110.0,105100.0,2.23488228]
[1749886567071,1.15118751,105110.0,105100.0,2.22001207]
[1749886567272,1.15118751,105110.0,105100.0,2.25477235]
[1749886567461,1.15118751,105110.0,105100.0,2.26508717]
[1749886567659,1.15118751,105110.0,105100.0,2.26508545]
[1749886568568,1.15118751,105110.0,105100.0,2.25021528]
[1749886568874,1.15118751,105110.0,105100.0,2.26508545]
[1749886569070,1.15118751,105110.0,105100.0,2.23990218]
[1749886569274,1.15118751,105110.0,105100.0,2.26508548]
[1749886569965,1.15118751,105110.0,105100.0,2.25477237]
[1749886570370,1.15118751,105110.0,105100.0,2.26508549]
[1749886570568,1.15118751,105110.0,105100.0,2.2650855]
[1749886570764,1.0044923,105110.0,105100.0,2.2650855]
[1749886571073,1.15118751,105110.0,105100.0,2.2502153]
[1749886571272,1.15118751,105110.0,105100.0,2.25477238]
[1749886571475,1.15118751,105110.0,105100.0,2.2502153]
[1749886571677,1.15118751,105110.0,105100.0,1.3049655]
[1749886571876,1.15118751,105110.0,105100.0,2.2648055]
[1749886572174,1.15118751,105110.0,105100.0,2.24993625]
[1749886572371,1.15118751,105110.0,105100.0,2.26480645]
[1749886573170,1.15118751,105110.0,105100.0,2.25449239]
[1749886573376,1.15118751,105110.0,105100.0,2.26480646]
[1749886573569,1.15118751,105110.0,105100.0,2.25449239]
[1749886573776,1.15118751,105110.0,105100.0,2.26480645]
[1749886573976,1.15118751,105110.0,105100.0,2.24993625]
[1749886574279,1.15118751,105110.0,105100.0,2.26480645]
[1749886574480,1.15118751,105110.0,105100.0,2.23962218]
[1749886574679,1.15118751,105110.0,105100.0,2.26480645]
[1749886575078,1.26970496,105110.0,105100.0,2.26480645]
[1749886575280,1.12300975,105110.0,105100.0,2.26480645]
[1749886575481,1.26970496,105110.0,105100.0,2.23962218]
[1749886575675,1.26970496,105110.0,105100.0,2.24993625]
[1749886575876,1.15118751,105110.0,105100.0,1.42765624]
[1749886576082,1.15118751,105110.0,105100.0,1.44252643]
[1749886576274,1.15118751,105110.0,105100.0,1.44252636]
[1749886576474,1.15118751,105110.0,105100.0,1.43221216]
[1749886576874,1.15118751,105110.0,105100.0,1.41734218]
[1749886577073,1.15118751,105110.0,105100.0,1.44252614]
[1749886577277,1.15118751,105110.0,105100.0,1.43221216]
[1749886577675,1.15118751,105110.0,105100.0,1.44252615]
[1749886577870,1.15118751,105110.0,105100.0,1.42765617]
[1749886578077,1.15118751,105110.0,105100.0,1.43221216]
[1749886578279,1.15118751,105110.0,105100.0,1.44252615]
[1749886578477,1.15118751,105110.0,105100.0,1.43221216]
[1749886578677,1.15118751,105110.0,105100.0,1.44252615]
[1749886579580,1.15118751,105110.0,105100.0,1.42765617]
[1749886579786,1.15118751,105110.0,105100.0,1.44252615]
[1749886579984,1.15118751,105110.0,105100.0,1.43221216]
[1749886580287,1.15118751,105110.0,105100.0,1.44252615]
[1749886580482,1.15118751,105110.0,105100.0,1.43221216]
[1749886580689,0.9419923,105110.0,105100.0,1.44252615]
[1749886580986,1.03096806,105110.0,105100.0,1.44252552]
[1749886581286,0.67016806,105110.0,105100.0,1.52018062]
[1749886581489,0.81686327,105110.0,105100.0,1.49499735]
[1749886581679,0.81686327,105110.0,105100.0,1.52017932]
[1749886581879,0.81686327,105110.0,105100.0,1.50530977]
[1749886582089,0.67016806,105110.0,105100.0,1.50530977]
[1749886582287,0.67016806,105110.0,105100.0,1.50986691]
[1749886582479,0.67016806,105110.0,105100.0,1.52017932]
[1749886582988,0.81686327,105110.0,105100.0,1.50986691]
[1749886583183,0.81686327,105110.0,105100.0,1.49499735]
[1749886583689,0.63996806,105110.0,105100.0,1.5201771]
[1749886584086,0.78666327,105110.0,105100.0,1.46531172]
[1749886584286,0.78666327,105110.0,105100.0,1.45044218]
[1749886584587,0.78666327,105110.0,105100.0,1.46531174]
[1749886584792,0.78666327,105110.0,105100.0,1.47562193]
[1749886585186,0.78666327,105110.0,105100.0,1.46531174]
[1749886585489,0.78666327,105110.0,105100.0,1.46075237]
[1749886585984,0.78666327,105110.0,105100.0,1.46531174]
[1749886586189,0.78666327,105110.0,105100.0,1.49499735]
[1749886586389,0.78666327,105110.0,105100.0,1.50530754]
[1749886586591,0.78666327,105110.0,105100.0,1.47562193]
[1749886586986,0.78666327,105110.0,105100.0,1.47562365]
[1749886587383,0.63996806,105110.0,105100.0,1.46531174]
[1749886587783,0.63996806,105110.0,105100.0,1.47561995]
[1749886587987,0.63996806,105110.0,105100.0,1.46531174]
[1749886588191,0.63996806,105110.0,105100.0,1.52017507]
[1749886588492,0.63996806,105110.0,105100.0,1.52017493]
[1749886588791,0.63996806,105110.0,105100.0,1.50986674]
[1749886588990,0.63996806,105110.0,105100.0,1.49499735]
[1749886589192,0.63996806,105110.0,105100.0,1.52017663]
[1749886589686,0.63996806,105110.0,105100.0,1.50986674]
[1749886589891,0.63996806,105110.0,105100.0,1.49499735]
[1749886590092,0.78666327,105110.0,105100.0,1.52017663]
[1749886590292,0.78666327,105110.0,105100.0,0.56033663]
[1749886590493,0.78666327,105110.0,105100.0,1.50966674]
[1749886590693,0.78666327,105110.0,105100.0,1.49479735]
[1749886590901,0.78666327,105110.0,105100.0,1.51997663]
[1749886591387,0.63996806,105110.0,105100.0,1.51997663]
[1749886591593,0.63996806,105110.0,105100.0,1.50510724]
[1749886591796,0.63996806,105110.0,105100.0,1.51997598]
[1749886592093,0.63996806,105110.0,105100.0,1.51997594]
[1749886592396,0.63996806,105110.0,105100.0,1.51997579]
[1749886592988,0.63996806,105110.0,105100.0,1.5199758]
[1749886593193,0.63996806,105110.0,105100.0,1.51998062]
[1749886593395,0.63996806,105110.0,105100.0,1.50966613]
[1749886593696,0.63996806,105110.0,105100.0,1.50511184]
[1749886593897,0.63996806,105110.0,105100.0,1.51998062]
[1749886594688,0.63996806,105110.0,105100.0,1.51998053]
[1749886594888,0.63996806,105110.0,105100.0,1.51998052]
[1749886595995,0.3608,105110.0,105100.0,1.57938723]
[1749886596296,0.5509923,105110.0,105100.0,1.57938717]
[1749886596490,0.5509923,105110.0,105100.0,1.57938715]
[1749886597298,0.5509923,105110.0,105100.0,1.57938666]
[1749886597483,0.5509923,105110.0,105100.0,1.57939035]
[1749886597686,0.5509923,105110.0,105100.0,1.5645222]
[1749886597881,0.5509923,105110.0,105100.0,1.56907231]
[1749886598089,0.5509923,105110.0,105100.0,1.57936629]
[1749886598287,0.5509923,105110.0,105100.0,1.56907231]
[1749886598484,0.5509923,105110.0,105100.0,1.57936628]
[1749886598687,0.5509923,105110.0,105100.0,1.56449822]
[1749886599287,0.5509923,105110.0,105100.0,1.5690723]
[1749886599488,0.5509923,105110.0,105100.0,1.55420424]
[1749886599684,0.5509923,105110.0,105100.0,1.5690723]
[1749886599892,0.5509923,105110.0,105100.0,1.57936628]
[1749886600188,0.5509923,105110.0,105100.0,1.56449822]
[1749886600488,0.5509923,105110.0,105100.0,1.57936627]
[1749886600693,0.5509923,105110.0,105100.0,1.56907229]
[1749886600894,0.5509923,105110.0,105100.0,1.56449822]
[1749886601294,0.5509923,105110.0,105100.0,1.57936627]
[1749886602095,0.5509923,105110.0,105100.0,1.56907229]
[1749886602288,0.5509923,105110.0,105100.0,1.57936627]
[1749886602592,0.5509923,105110.0,105100.0,1.56907229]
[1749886602786,0.5509923,105110.0,105100.0,1.55420424]
[1749886602983,0.5509923,105110.0,105100.0,1.56449822]
[1749886603287,0.5509923,105110.0,105100.0,1.57936628]
[1749886603489,0.5509923,105110.0,105100.0,1.55420424]
[1749886603684,0.5509923,105110.0,105100.0,1.56449822]
[1749886604093,0.5509923,105110.0,105100.0,1.43267107]
[1749886604297,0.5509923,105110.0,105100.0,0.60943231]
[1749886604594,0.5509923,105110.0,105100.0,1.5788463]
[1749886604799,0.5509923,105110.0,105100.0,1.51943945]
[1749886605098,0.5509923,105110.0,105100.0,1.50914549]
[1749886605402,0.5509923,105110.0,105100.0,1.51943951]
[1749886605891,0.5509923,105110.0,105100.0,1.56397825]
[1749886606093,0.5509923,105110.0,105100.0,1.57884629]
[1749886606487,0.5509923,105110.0,105100.0,1.57884628]
[1749886606888,0.5509923,105110.0,105100.0,1.59554366]
[1749886607087,0.5509923,105110.0,105100.0,1.59554364]
[1749886607391,0.5509923,105110.0,105100.0,1.58524966]
[1749886607592,0.5509923,105110.0,105100.0,1.5806756]
[1749886607796,0.5509923,105110.0,105100.0,1.59554366]
[1749886607999,0.5509923,105110.0,105100.0,1.59552799]
[1749886608194,0.5509923,105110.0,105100.0,1.57038163]
[1749886608389,0.5509923,105110.0,105100.0,1.58065994]
[1749886608592,0.5509923,105110.0,105100.0,1.59552799]
[1749886608789,0.55670517,105130.0,105100.0,2.29580386]
[1749886608998,0.83604401,105130.0,105120.0,0.52809854]
[1749886609188,0.83604401,105130.0,105120.0,1.5544731]
[1749886609396,0.11184671,105130.0,105120.0,1.96490683]
[1749886609598,0.00014255,105130.0,105120.0,1.683442]
[1749886609798,0.00014255,105130.0,105120.0,1.70857792]
[1749886610002,0.00014255,105130.0,105120.0,1.70857789]
[1749886610204,0.00314255,105130.0,105120.0,1.6983067]
[1749886610499,0.00314255,105130.0,105120.0,1.70857799]
[1749886610803,0.00314255,105130.0,105120.0,1.6983067]
[1749886610998,0.00314255,105130.0,105120.0,1.70857799]
[1749886611198,0.00014255,105130.0,105120.0,1.70857799]
[1749886611505,0.00014255,105130.0,105120.0,1.50647589]
[1749886611991,0.00014255,105130.0,105120.0,1.71894635]
[1749886612292,0.00014255,105130.0,105120.0,1.67279023]
[1749886612496,0.00014255,105130.0,105120.0,1.76791823]
[1749886612699,0.00014255,105130.0,105120.0,1.78279109]
[1749886612898,0.00014255,105130.0,105120.0,1.82725312]
[1749886613401,0.00014255,105130.0,105120.0,1.80213787]
[1749886613605,0.00014255,105130.0,105120.0,2.23270093]
[1749886613800,0.00014255,105130.0,105120.0,2.21785693]
[1749886614005,0.00014255,105130.0,105120.0,2.2224296]
[1749886614306,0.00014255,105130.0,105120.0,2.22242954]
[1749886614698,0.00014255,105130.0,105120.0,2.11847573]
[1749886614898,0.00014255,105130.0,105120.0,2.20758607]
[1749886615103,0.5509199,105150.0,105140.0,0.190138]
[1749886615304,0.1901199,105150.0,105140.0,2.17476674]
[1749886615504,0.1901199,105150.0,105140.0,2.25298978]
[1749886615708,0.21104532,105150.0,105140.0,2.26776651]
[1749886615899,0.21104532,105150.0,105140.0,2.26776644]
[1749886616302,0.4257,105160.0,105140.0,2.07762841]
[1749886616606,0.5839027,105160.0,105150.0,0.33681521]
[1749886616808,0.5839027,105160.0,105150.0,0.44341178]
[1749886617199,0.5839027,105160.0,105150.0,0.42694889]
[1749886617506,0.5959027,105160.0,105150.0,0.42694889]
[1749886618607,0.6049027,105160.0,105150.0,0.42694889]
[1749886619405,0.6049027,105160.0,105150.0,0.42794889]
[1749886620007,0.6049027,105160.0,105150.0,0.29771657]
[1749886620208,0.62611953,105160.0,105150.0,0.26601657]
[1749886621410,0.65821953,105160.0,105150.0,0.26601657]
[1749886622012,0.65821953,105160.0,105150.0,1.22465657]
[1749886622512,0.65821953,105160.0,105150.0,1.18246]
[1749886622710,0.65821953,105160.0,105150.0,1.31269232]
[1749886622911,0.6370027,105160.0,105150.0,1.35465966]
[1749886623109,0.021,105160.0,105150.0,1.67349232]
[1749886623407,0.021,105160.0,105150.0,1.7470594]
[1749886623612,0.2111019,105160.0,105150.0,1.7470594]
[1749886624113,0.021,105160.0,105150.0,1.7470594]
[1749886624408,0.021,105160.0,105150.0,1.88658335]
[1749886624606,0.7387148,105180.0,105150.0,1.69646335]
[1749886624811,0.8862345,105180.0,105170.0,0.32031612]
[1749886625008,0.7862345,105180.0,105170.0,1.27891612]
[1749886625212,0.7862345,105180.0,105170.0,1.31071612]
[1749886625213,0.6459148,105180.0,105170.0,1.31071612]
[1749886625411,0.6459148,105180.0,105170.0,1.34371612]
[1749886625615,0.6784148,105180.0,105170.0,1.31071612]
[1749886626010,0.7103148,105180.0,105170.0,1.31071612]
[1749886626211,0.41500137,105180.0,105170.0,1.35264196]
[1749886626413,0.3608,105180.0,105170.0,1.35264196]
[1749886626607,0.5508657,105180.0,105170.0,1.38564196]
[1749886626807,0.002,105180.0,105170.0,1.38564196]
[1749886627003,0.1920657,105180.0,105170.0,1.38564196]
[1749886627209,0.1920657,105180.0,105170.0,1.38864196]
[1749886629318,0.002,105180.0,105170.0,1.74944196]
[1749886629515,0.1920657,105180.0,105170.0,1.74944196]
[1749886629717,0.002,105180.0,105170.0,1.74944196]
[1749886630417,0.1920657,105180.0,105170.0,1.74944196]
[1749886630716,0.002,105180.0,105170.0,1.84452196]
[1749886632113,0.002,105180.0,105170.0,0.88592196]
[1749886632313,0.002,105180.0,105170.0,1.84420196]
[1749886633013,0.002,105180.0,105170.0,1.79354991]
[1749886633213,0.002,105180.0,105170.0,1.88862991]
[1749886634018,0.002,105180.0,105170.0,1.79354991]